bitfinex/quotes_SOLUSD_20241208
["timestamp","ask_amount","ask_price","bid_price","bid_amount"]
[1733682430406,8.24645874,235.41,235.36,8.24645874]
[1733682431204,20.0,235.43,235.36,8.24645874]
[1733682431506,8.24645874,235.41,235.36,8.24645874]
[1733682433107,8.24645874,235.41,235.35,8.24645874]
[1733682435006,8.24645874,235.4,235.35,8.24645874]
[1733682436208,8.24645874,235.4,235.33,0.4848368]
[1733682436386,8.24645874,235.4,235.35,8.24645874]
[1733682436601,8.24645874,235.4,235.34,8.24645874]
[1733682436921,8.24645874,235.39,235.33,8.73129554]
[1733682437091,8.24645874,235.38,235.33,0.4848368]
[1733682440621,8.24645874,235.34,235.33,0.4848368]
[1733682442302,8.24645874,235.35,235.33,0.4848368]
[1733682442896,8.24645874,235.36,235.33,0.4848368]
[1733682444036,7.7276,235.38,235.33,8.73129554]
[1733682444228,8.24645874,235.41,235.35,8.24645874]
[1733682445832,20.0,235.41,235.36,8.24645874]
[1733682447775,28.24645874,235.41,235.35,8.24645874]
[1733682447912,8.24645874,235.41,235.35,8.24645874]
[1733682448114,7.6818,235.44,235.36,8.24645874]
[1733682448620,8.24645874,235.43,235.36,8.24645874]
[1733682450315,8.24645874,235.41,235.33,0.4848368]
[1733682450516,8.24645874,235.4,235.34,8.24645874]
[1733682451110,8.24645874,235.41,235.35,8.24645874]
[1733682453044,8.24645874,235.4,235.34,8.24645874]
[1733682453346,8.24645874,235.38,235.33,0.4848368]
[1733682453641,42.79123496,235.44,235.33,0.4848368]
[1733682453642,8.24645874,235.37,235.33,0.4848368]
[1733682454238,42.79123496,235.44,235.33,0.4848368]
[1733682454239,8.24645874,235.36,235.33,0.4848368]
[1733682454420,8.24645874,235.35,235.33,0.4848368]
[1733682456114,20.0,235.41,235.33,0.4848368]
[1733682456317,20.0,235.4,235.34,8.24645874]
[1733682456636,28.24645874,235.4,235.34,8.24645874]
[1733682459321,28.24645874,235.4,235.33,8.73129554]
[1733682459532,8.24645874,235.36,235.33,0.4848368]
[1733682460458,8.24645874,235.35,235.33,0.4848368]
[1733682462436,8.24645874,235.36,235.33,0.4848368]
[1733682463630,8.24645874,235.37,235.33,0.4848368]
[1733682463959,22.1239,235.41,235.33,0.4848368]
[1733682464256,8.24645874,235.4,235.34,8.24645874]
[1733682465565,8.24645874,235.43,235.37,8.24645874]
[1733682466063,8.24645874,235.44,235.38,8.24645874]
[1733682466975,8.24645874,235.44,235.39,8.24645874]
[1733682467135,9.32544816,235.52,235.43,8.24645874]
[1733682467340,8.24645874,235.49,235.43,8.24645874]
[1733682467735,8.24645874,235.48,235.43,8.24645874]
[1733682467969,8.24645874,235.48,235.42,8.24645874]
[1733682469571,8.24645874,235.49,235.42,8.24645874]
[1733682470574,8.24645874,235.5,235.44,8.24645874]
[1733682472047,10.39232124,235.54,235.47,8.24645874]
[1733682472255,10.39232124,235.54,235.38,10.6211]
[1733682472256,8.24645874,235.52,235.46,8.24645874]
[1733682472451,8.24645874,235.51,235.45,8.24645874]
[1733682473866,8.24645874,235.5,235.44,8.24645874]
[1733682474383,8.24645874,235.48,235.42,8.24645874]
[1733682475046,8.24645874,235.5,235.44,8.24645874]
[1733682475942,10.39232124,235.54,235.47,8.24645874]
[1733682476183,8.24645874,235.53,235.47,8.24645874]
[1733682477065,8.24645874,235.52,235.46,8.24645874]
[1733682477267,8.24645874,235.5,235.39,23.776884]
[1733682477460,8.24645874,235.5,235.44,8.24645874]
[1733682477657,8.24645874,235.48,235.42,8.24645874]
[1733682478565,8.24645874,235.46,235.4,8.24645874]
[1733682479555,8.24645874,235.47,235.41,8.24645874]
[1733682479953,8.24645874,235.47,235.37,8.2526]
[1733682479954,8.24645874,235.48,235.42,8.24645874]
[1733682480155,8.24645874,235.49,235.42,8.24645874]
[1733682481172,8.24645874,235.51,235.45,8.24645874]
[1733682482072,2.1225,235.57,235.45,8.24645874]
[1733682482073,8.24645874,235.52,235.45,8.24645874]
[1733682483271,20.0,235.55,235.46,8.24645874]
[1733682483457,8.24645874,235.53,235.47,8.24645874]
[1733682483663,8.24645874,235.53,235.46,8.24645874]
[1733682483879,8.24645874,235.52,235.45,8.24645874]
[1733682484191,8.24645874,235.52,235.46,8.24645874]
[1733682485179,20.0,235.55,235.4,23.776884]
[1733682485361,8.24645874,235.52,235.46,8.24645874]
[1733682485779,8.24645874,235.54,235.47,8.24645874]
[1733682485960,8.24645874,235.53,235.47,8.24645874]
[1733682486972,8.24645874,235.54,235.48,8.24645874]
[1733682487384,13.27243081,235.58,235.5,8.24645874]
[1733682487684,8.24645874,235.56,235.5,8.24645874]
[1733682488398,8.24645874,235.55,235.49,8.24645874]
[1733682489186,8.24645874,235.55,235.48,8.24645874]
[1733682489772,13.27243081,235.58,235.48,8.24645874]
[1733682489968,8.24645874,235.55,235.48,8.24645874]
[1733682490174,8.24645874,235.55,235.45,1.5826]
[1733682490372,8.24645874,235.55,235.48,8.24645874]
[1733682491858,8.24645874,235.55,235.45,1.5826]
[1733682492190,8.24645874,235.54,235.47,8.24645874]
[1733682493283,8.24645874,235.55,235.48,8.24645874]
[1733682494065,8.24645874,235.56,235.49,8.24645874]
[1733682494269,8.24645874,235.55,235.48,8.24645874]
[1733682495192,8.24645874,235.56,235.49,8.24645874]
[1733682495658,13.27243081,235.58,235.53,8.24645874]
[1733682495999,13.27243081,235.58,235.54,8.24645874]
[1733682498687,13.27243081,235.58,235.55,8.24645874]
[1733682499983,13.27243081,235.58,235.56,8.24645874]
[1733682501061,13.27243081,235.58,235.57,8.24645874]
[1733682501477,13.27243081,235.58,235.57,32.02334274]
[1733682502371,7.5506,235.72,235.58,23.776884]
[1733682502372,8.24645874,235.68,235.58,23.776884]
[1733682502592,8.24645874,235.68,235.62,8.24645874]
[1733682502765,8.24645874,235.69,235.62,8.24645874]
[1733682502960,8.24645874,235.69,235.58,23.776884]
[1733682502961,7.5506,235.72,235.64,8.24645874]
[1733682503159,8.24645874,235.72,235.65,8.24645874]
[1733682503357,8.24645874,235.72,235.66,8.24645874]
[1733682503560,17.79284479,235.77,235.66,8.24645874]
[1733682503779,8.24645874,235.72,235.66,8.24645874]
[1733682504710,8.24645874,235.75,235.69,8.24645874]
[1733682505608,13.45760939,235.76,235.64,10.6094]
[1733682505912,8.24645874,235.79,235.73,8.24645874]
[1733682506499,8.24645874,235.78,235.72,8.24645874]
[1733682506703,1.5278,235.83,235.71,8.24645874]
[1733682507021,8.24645874,235.73,235.65,23.776884]
[1733682507183,8.24645874,235.73,235.67,8.24645874]
[1733682507383,8.24645874,235.75,235.69,8.24645874]
[1733682507986,8.24645874,235.74,235.68,8.24645874]
[1733682508213,8.24645874,235.73,235.67,8.24645874]
[1733682508513,20.0,235.81,235.72,8.24645874]
[1733682508713,8.24645874,235.79,235.72,8.24645874]
[1733682509010,8.24645874,235.76,235.7,8.24645874]
[1733682509604,8.24645874,235.77,235.71,8.24645874]
[1733682511610,8.24645874,235.77,235.7,8.24645874]
[1733682512431,8.24645874,235.8,235.74,8.24645874]
[1733682513211,2.1199,235.86,235.77,8.24645874]
[1733682513399,8.24645874,235.83,235.77,8.24645874]
[1733682513609,8.24645874,235.82,235.76,8.24645874]
[1733682514007,8.24645874,235.81,235.75,8.24645874]
[1733682515947,4.28917825,235.9,235.8,8.24645874]
[1733682516243,8.24645874,235.89,235.83,8.24645874]
[1733682516412,8.24645874,235.87,235.81,8.24645874]
[1733682516613,8.24645874,235.87,235.8,8.24645874]
[1733682517137,8.24645874,235.85,235.79,8.24645874]
[1733682517438,8.24645874,235.86,235.8,8.24645874]
[1733682517631,8.24645874,235.87,235.81,8.24645874]
[1733682519235,8.24645874,235.87,235.78,23.776884]
[1733682519434,8.24645874,235.87,235.81,8.24645874]
[1733682520709,8.24645874,235.87,235.78,23.776884]
[1733682520908,8.24645874,235.86,235.8,8.24645874]
[1733682521436,11.87493265,235.91,235.84,8.24645874]
[1733682521614,11.87493265,235.91,235.78,23.776884]
[1733682521615,11.87493265,235.91,235.85,8.24645874]
[1733682521796,11.87493265,235.91,235.84,8.24645874]
[1733682521797,8.24645874,235.9,235.84,8.24645874]
[1733682522000,8.24645874,235.89,235.83,8.24645874]
[1733682522297,11.87493265,235.91,235.84,8.24645874]
[1733682522500,11.87493265,235.91,235.85,8.24645874]
[1733682522747,20.12139139,235.91,235.85,8.24645874]
[1733682523302,11.87493265,235.91,235.86,8.24645874]
[1733682523502,20.12139139,235.91,235.85,8.24645874]
[1733682524621,11.87493265,235.91,235.86,8.24645874]
[1733682525128,8.24645874,235.92,235.86,8.24645874]
[1733682525333,8.24645874,235.91,235.85,8.24645874]
[1733682525931,8.24645874,235.92,235.85,8.24645874]
[1733682526443,8.24645874,235.89,235.8,23.776884]
[1733682526638,8.24645874,235.87,235.81,8.24645874]
[1733682526835,8.24645874,235.88,235.82,8.24645874]
[1733682527035,2.1191,235.95,235.83,8.24645874]
[1733682527036,8.24645874,235.9,235.83,8.24645874]
[1733682527931,8.24645874,235.9,235.79,6.3314]
[1733682528134,8.24645874,235.9,235.84,8.24645874]
[1733682529838,8.24645874,235.9,235.83,8.24645874]
[1733682531645,8.24645874,235.94,235.88,8.24645874]
[1733682531946,8.24645874,235.94,235.8,57.3985627]
[1733682531947,8.24645874,235.95,235.89,8.24645874]
[1733682532735,8.24645874,235.96,235.89,8.24645874]
[1733682533021,8.24645874,235.95,235.89,8.24645874]
[1733682534215,8.24645874,235.94,235.88,8.24645874]
[1733682534419,8.24645874,235.92,235.86,23.776884]
[1733682535354,8.24645874,235.93,235.86,32.02334274]
[1733682535724,8.24645874,235.9,235.84,28.24645874]
[1733682536140,8.24645874,235.9,235.84,23.776884]
[1733682536518,8.24645874,235.88,235.82,8.24645874]
[1733682536715,8.24645874,235.89,235.82,8.24645874]
[1733682536949,8.24645874,235.9,235.84,8.24645874]
[1733682537253,8.24645874,235.92,235.86,8.24645874]
[1733682537459,20.0,236.0,235.87,8.24645874]
[1733682537631,8.24645874,235.93,235.87,8.24645874]
[1733682538520,8.24645874,235.93,235.86,8.24645874]
[1733682540253,20.0,236.0,235.88,8.24645874]
[1733682540424,8.24645874,235.95,235.88,8.24645874]
[1733682540619,8.24645874,235.95,235.89,8.24645874]
[1733682541860,8.24645874,235.93,235.87,8.24645874]
[1733682542336,8.24645874,235.93,235.84,20.0]
[1733682542540,8.24645874,235.93,235.87,8.24645874]
[1733682542772,8.24645874,235.93,235.85,23.776884]
[1733682542959,8.24645874,235.93,235.86,8.24645874]
[1733682544973,8.24645874,235.93,235.87,23.776884]
[1733682545272,8.24645874,235.91,235.85,23.776884]
[1733682545660,8.24645874,235.91,235.85,32.02334274]
[1733682548691,8.24645874,235.92,235.85,32.02334274]
[1733682550658,8.24645874,235.91,235.85,32.02334274]
[1733682553872,8.24645874,235.89,235.8,12.2329]
[1733682554045,8.24645874,235.88,235.83,23.776884]
[1733682554245,8.24645874,235.87,235.83,23.776884]
[1733682554483,8.24645874,235.87,235.82,23.776884]
[1733682555057,8.24645874,235.87,235.81,23.776884]
[1733682555649,8.24645874,235.87,235.81,32.02334274]
[1733682556155,8.24645874,235.88,235.81,32.02334274]
[1733682556663,8.24645874,235.87,235.81,23.776884]
[1733682557157,8.24645874,235.87,235.8,8.24645874]
[1733682557878,8.24645874,235.86,235.8,8.24645874]
[1733682559088,7.81197601,235.86,235.8,8.24645874]
[1733682559258,7.81197601,235.86,235.8,20.0]
[1733682559456,8.24645874,235.84,235.8,20.0]
[1733682559656,8.24645874,235.85,235.8,20.0]
[1733682561184,8.24645874,235.81,235.73,8.24645874]
[1733682561381,8.24645874,235.79,235.72,8.24645874]
[1733682563257,8.24645874,235.79,235.72,20.0]
[1733682563461,8.24645874,235.79,235.73,8.24645874]
[1733682564086,8.24645874,235.77,235.69,1.5975]
[1733682564294,8.24645874,235.77,235.71,8.24645874]
[1733682569276,20.0,235.82,235.72,8.24645874]
[1733682569474,8.24645874,235.77,235.72,8.24645874]
[1733682569801,8.24645874,235.78,235.72,8.24645874]
[1733682569996,8.24645874,235.77,235.72,8.24645874]
[1733682570881,8.24645874,235.76,235.71,8.24645874]
[1733682572103,8.24645874,235.75,235.7,8.24645874]
[1733682572310,20.0,235.82,235.65,10.6086]
[1733682572311,8.24645874,235.71,235.65,23.776884]
[1733682572468,8.24645874,235.71,235.67,23.776884]
[1733682572669,8.24645874,235.71,235.64,1.6445]
[1733682572670,8.24645874,235.7,235.64,8.24645874]
[1733682572918,8.24645874,235.69,235.6,10.6108]
[1733682573102,8.24645874,235.69,235.63,8.24645874]
[1733682574097,8.24645874,235.68,235.62,8.24645874]
[1733682574287,8.24645874,235.68,235.6,10.6108]
[1733682574607,8.24645874,235.68,235.63,23.776884]
[1733682575395,8.24645874,235.66,235.61,23.776884]
[1733682576408,8.24645874,235.64,235.53,1.6445]
[1733682576707,8.24645874,235.64,235.57,8.24645874]
[1733682577213,8.24645874,235.64,235.53,1.6445]
[1733682577214,8.24645874,235.64,235.58,8.24645874]
[1733682577912,8.24645874,235.64,235.55,20.0]
[1733682578071,8.24645874,235.64,235.58,8.24645874]
[1733682581320,8.24645874,235.64,235.54,23.776884]
[1733682581528,8.24645874,235.64,235.58,8.24645874]
[1733682582627,8.24645874,235.65,235.59,8.24645874]
[1733682582997,8.24645874,235.65,235.58,8.24645874]
[1733682585308,8.24645874,235.65,235.54,24.41346121]
[1733682585500,8.24645874,235.65,235.59,8.24645874]
[1733682585700,8.24645874,235.65,235.58,8.24645874]
[1733682587189,8.24645874,235.64,235.58,8.24645874]
[1733682588809,8.24645874,235.65,235.58,8.24645874]
[1733682591403,8.24645874,235.62,235.56,8.24645874]
[1733682591610,8.24645874,235.61,235.56,8.24645874]
[1733682592336,39.08383496,235.68,235.48,6.5602]
[1733682592337,8.24645874,235.57,235.51,20.0]
[1733682592538,8.24645874,235.57,235.52,8.24645874]
[1733682592750,8.24645874,235.58,235.51,20.0]
[1733682592907,8.24645874,235.58,235.52,8.24645874]
[1733682593404,8.24645874,235.58,235.51,20.0]
[1733682593621,8.24645874,235.58,235.52,32.02334274]
[1733682594251,8.24645874,235.58,235.52,23.776884]
[1733682594413,8.24645874,235.58,235.53,8.24645874]
[1733682594613,8.24645874,235.57,235.52,23.776884]
[1733682595038,8.24645874,235.58,235.52,32.02334274]
[1733682596037,8.24645874,235.59,235.53,8.24645874]
[1733682597915,8.24645874,235.6,235.53,8.24645874]
[1733682598343,3.1828,235.64,235.53,8.24645874]
[1733682598717,8.24645874,235.6,235.54,8.24645874]
[1733682599143,8.24645874,235.59,235.53,8.24645874]
[1733682600348,8.24645874,235.58,235.52,32.02334274]
[1733682601558,8.24645874,235.56,235.48,1.5602]
[1733682601713,8.24645874,235.54,235.46,20.0]
[1733682601918,8.24645874,235.53,235.47,8.24645874]
[1733682603121,8.24645874,235.53,235.42,1.6454]
[1733682603323,8.24645874,235.53,235.42,21.6454]
[1733682603545,8.24645874,235.53,235.47,8.24645874]
[1733682603749,8.24645874,235.5,235.44,8.24645874]
[1733682603960,8.24645874,235.49,235.43,8.24645874]
[1733682604123,8.24645874,235.5,235.44,8.24645874]
[1733682604658,23.1838,235.57,235.46,8.24645874]
[1733682604853,8.24645874,235.52,235.46,8.24645874]
[1733682605061,8.24645874,235.52,235.38,12.77112149]
[1733682605062,6.46602903,235.6,235.5,8.24645874]
[1733682605236,8.24645874,235.56,235.5,8.24645874]
[1733682606051,6.46602903,235.6,235.51,8.24645874]
[1733682606218,8.24645874,235.58,235.52,8.24645874]
[1733682606820,8.24645874,235.56,235.5,8.24645874]
[1733682607047,8.24645874,235.55,235.46,23.776884]
[1733682607257,8.24645874,235.53,235.47,8.24645874]
[1733682607454,8.24645874,235.56,235.5,8.24645874]
[1733682608845,8.24645874,235.55,235.45,23.776884]
[1733682609057,8.24645874,235.55,235.49,8.24645874]
[1733682610753,8.24645874,235.54,235.48,8.24645874]
[1733682610966,8.24645874,235.54,235.49,23.776884]
[1733682611755,8.24645874,235.53,235.43,20.0]
[1733682611958,8.24645874,235.52,235.46,8.24645874]
[1733682613324,8.24645874,235.52,235.47,23.776884]
[1733682615260,3.1835,235.59,235.48,8.24645874]
[1733682615461,8.24645874,235.54,235.48,8.24645874]
[1733682615953,8.24645874,235.58,235.52,8.24645874]
[1733682616124,8.24645874,235.58,235.53,8.24645874]
[1733682616523,8.24645874,235.57,235.49,24.41374925]
[1733682616771,6.46602903,235.6,235.48,23.776884]
[1733682616772,8.24645874,235.53,235.48,23.776884]
[1733682618165,8.24645874,235.55,235.49,8.24645874]
[1733682618865,6.2122,235.6,235.53,8.24645874]
[1733682619074,1.659,235.61,235.55,8.24645874]
[1733682619379,8.24645874,235.6,235.54,8.24645874]
[1733682620086,8.24645874,235.59,235.53,8.24645874]
[1733682620590,8.24645874,235.59,235.54,23.776884]
[1733682620982,8.24645874,235.6,235.54,32.02334274]
[1733682625088,8.24645874,235.59,235.54,23.776884]
[1733682626589,6.493,235.66,235.58,32.02334274]
[1733682626900,8.24645874,235.65,235.59,8.24645874]
[1733682627575,6.0933,235.71,235.61,8.24645874]
[1733682627971,6.0933,235.71,235.64,8.24645874]
[1733682628177,8.24645874,235.71,235.64,8.24645874]
[1733682628496,10.78740809,235.76,235.67,8.24645874]
[1733682628497,8.24645874,235.74,235.67,8.24645874]
[1733682629170,8.24645874,235.74,235.68,32.02334274]
[1733682629392,8.24645874,235.75,235.69,8.24645874]
[1733682629696,8.24645874,235.72,235.66,8.24645874]
[1733682630696,8.24645874,235.71,235.65,8.24645874]
[1733682630865,8.24645874,235.71,235.62,34.386984]
[1733682630866,8.24645874,235.69,235.63,8.24645874]
[1733682631065,8.24645874,235.69,235.64,23.776884]
[1733682633102,8.24645874,235.7,235.64,23.776884]
[1733682633305,8.24645874,235.7,235.64,32.02334274]
[1733682634082,8.24645874,235.68,235.62,8.24645874]
[1733682634588,8.24645874,235.67,235.61,28.24645874]
[1733682634905,8.24645874,235.66,235.61,20.0]
[1733682635200,3.1813,235.75,235.61,20.0]
[1733682635201,8.24645874,235.65,235.61,20.0]
[1733682635602,8.24645874,235.64,235.57,1.6002]
[1733682635906,8.24645874,235.64,235.58,8.24645874]
[1733682636372,8.24645874,235.65,235.59,8.24645874]
[1733682636572,3.1813,235.75,235.59,8.24645874]
[1733682636773,3.1813,235.75,235.57,1.6002]
[1733682636774,8.24645874,235.67,235.61,8.24645874]
[1733682636974,8.24645874,235.69,235.62,8.24645874]
[1733682638711,8.24645874,235.68,235.62,8.24645874]
[1733682640111,10.78740809,235.76,235.62,32.02334274]
[1733682640318,8.24645874,235.7,235.63,8.24645874]
[1733682640681,8.24645874,235.69,235.63,8.24645874]
[1733682641416,8.24645874,235.71,235.65,8.24645874]
[1733682641988,8.24645874,235.7,235.63,32.02334274]
[1733682642902,8.24645874,235.69,235.63,32.02334274]
[1733682643904,8.24645874,235.68,235.62,8.24645874]
[1733682644081,8.24645874,235.67,235.61,8.24645874]
[1733682644509,8.24645874,235.66,235.6,32.02334274]
[1733682646203,8.24645874,235.65,235.59,8.24645874]
[1733682646397,8.24645874,235.65,235.6,23.776884]
[1733682646790,8.24645874,235.66,235.6,8.24645874]
[1733682648031,8.24645874,235.64,235.58,32.02334274]
[1733682648686,8.24645874,235.64,235.58,31.76951371]
[1733682650227,8.24645874,235.67,235.61,8.24645874]
[1733682651521,8.24645874,235.66,235.6,8.24645874]
[1733682652196,8.24645874,235.66,235.59,8.24645874]
[1733682652397,8.24645874,235.65,235.59,8.24645874]
[1733682652707,8.24645874,235.63,235.57,21.6002]
[1733682652890,8.24645874,235.63,235.57,9.84665874]
[1733682653312,8.24645874,235.64,235.58,8.24645874]
[1733682655642,8.24645874,235.63,235.57,1.6002]
[1733682655810,8.24645874,235.61,235.54,8.24645874]
[1733682656612,8.24645874,235.6,235.54,8.24645874]
[1733682658235,8.24645874,235.61,235.55,8.24645874]
[1733682658804,8.24645874,235.61,235.52,23.776884]
[1733682658805,8.24645874,235.61,235.51,1.595]
[1733682659004,8.24645874,235.6,235.53,8.24645874]
[1733682662942,8.24645874,235.59,235.53,8.24645874]
[1733682663249,8.24645874,235.58,235.52,8.24645874]
[1733682663831,8.24645874,235.56,235.47,10.6166]
[1733682664021,3.1829,235.64,235.51,8.24645874]
[1733682664231,8.24645874,235.58,235.52,8.24645874]
[1733682664546,20.0,235.65,235.48,23.776884]
[1733682664547,8.24645874,235.6,235.55,8.24645874]
[1733682665116,8.24645874,235.6,235.54,8.24645874]
[1733682666048,6.4601,235.68,235.59,8.24645874]
[1733682666217,8.24645874,235.66,235.6,8.24645874]
[1733682666523,8.20534335,235.66,235.6,8.24645874]
[1733682666727,8.24645874,235.65,235.6,8.24645874]
[1733682666912,8.24645874,235.66,235.6,8.24645874]
[1733682668651,8.24645874,235.65,235.6,8.24645874]
[1733682668827,6.4601,235.68,235.55,23.776884]
[1733682668828,8.24645874,235.64,235.55,23.776884]
[1733682669023,8.24645874,235.64,235.58,8.24645874]
[1733682669249,8.24645874,235.63,235.55,23.776884]
[1733682669450,8.24645874,235.63,235.57,8.24645874]
[1733682670823,8.24645874,235.63,235.54,1.5204]
[1733682671026,8.24645874,235.59,235.54,1.5204]
[1733682671241,8.24645874,235.57,235.48,1.6275]
[1733682671447,8.24645874,235.57,235.51,8.24645874]
[1733682672118,8.24645874,235.56,235.5,8.24645874]
[1733682673627,8.24645874,235.56,235.51,8.24645874]
[1733682674523,8.24645874,235.57,235.51,8.24645874]
[1733682674726,3.1824,235.67,235.55,8.24645874]
[1733682674953,8.24645874,235.62,235.56,8.24645874]
[1733682675317,6.4601,235.68,235.6,8.24645874]
[1733682675628,8.24645874,235.66,235.6,8.24645874]
[1733682676726,8.24645874,235.65,235.59,8.24645874]
[1733682678235,8.24645874,235.64,235.58,8.24645874]
[1733682678437,8.24645874,235.63,235.58,8.24645874]
[1733682678950,8.24645874,235.63,235.57,8.24645874]
[1733682679117,6.4601,235.68,235.57,8.24645874]
[1733682679653,8.24645874,235.63,235.57,8.24645874]
[1733682679844,8.24645874,235.6,235.49,34.392584]
[1733682680046,8.24645874,235.58,235.52,8.24645874]
[1733682680239,8.24645874,235.57,235.51,8.24645874]
[1733682680839,8.24645874,235.56,235.5,8.24645874]
[1733682681164,8.24645874,235.56,235.49,23.776884]
[1733682681457,8.24645874,235.55,235.49,32.02334274]
[1733682681851,8.24645874,235.55,235.49,8.24645874]
[1733682682251,8.24645874,235.55,235.48,29.87395874]
[1733682682555,8.24645874,235.54,235.48,8.24645874]
[1733682684465,8.24645874,235.53,235.47,8.24645874]
[1733682684864,8.24645874,235.52,235.43,1.5236]
[1733682685163,8.24645874,235.52,235.46,8.24645874]
[1733682685582,8.24645874,235.5,235.44,8.24645874]
[1733682685866,8.24645874,235.48,235.42,8.24645874]
[1733682686871,36.16973496,235.56,235.37,12.2146]
[1733682686872,8.24645874,235.47,235.41,8.24645874]
[1733682687233,12.99561406,235.47,235.41,12.99561406]
[1733682687852,12.99561406,235.44,235.37,1.5935]
[1733682688164,12.99561406,235.45,235.39,12.99561406]
[1733682690739,12.99561406,235.46,235.39,12.99561406]
[1733682690939,12.99561406,235.45,235.39,12.99561406]
[1733682693792,12.99561406,235.44,235.38,12.99561406]
[1733682695367,12.99561406,235.43,235.37,12.99561406]
[1733682695588,12.99561406,235.42,235.36,12.99561406]
[1733682695981,12.99561406,235.41,235.35,12.99561406]
[1733682696188,12.99561406,235.44,235.38,12.99561406]
[1733682696364,12.99561406,235.45,235.39,12.99561406]
[1733682697388,12.99561406,235.46,235.4,12.99561406]
[1733682697712,14.94325535,235.49,235.44,12.99561406]
[1733682697867,14.94325535,235.49,235.45,12.99561406]
[1733682699799,14.94325535,235.49,235.44,12.99561406]
[1733682700971,14.94325535,235.49,235.45,12.99561406]
[1733682702013,14.94325535,235.49,235.46,12.99561406]
[1733682702178,14.94325535,235.49,235.48,12.99561406]
[1733682702510,12.99561406,235.55,235.48,12.99561406]
[1733682702711,12.99561406,235.55,235.49,12.99561406]
[1733682702999,12.99561406,235.54,235.48,12.99561406]
[1733682703977,12.99561406,235.55,235.48,12.99561406]
[1733682704173,12.99561406,235.56,235.44,23.61381406]
[1733682704392,12.99561406,235.58,235.52,12.99561406]
[1733682704575,12.99561406,235.59,235.52,12.99561406]
[1733682704777,12.99561406,235.6,235.53,12.99561406]
[1733682705814,12.99561406,235.62,235.55,12.99561406]
[1733682705978,12.99561406,235.62,235.56,12.99561406]
[1733682706178,12.99561406,235.63,235.56,12.99561406]
[1733682706989,12.99561406,235.64,235.58,12.99561406]
[1733682707172,8.3052418,235.64,235.58,8.3052418]
[1733682707375,8.3052418,235.64,235.57,8.3052418]
[1733682707903,8.3052418,235.63,235.54,23.776884]
[1733682708213,8.3052418,235.63,235.56,8.3052418]
[1733682708778,8.3052418,235.61,235.55,8.3052418]
[1733682708979,8.3052418,235.59,235.52,23.776884]
[1733682709178,12.98324188,235.57,235.51,14.53124188]
[1733682709403,12.98324188,235.57,235.51,1.548]
[1733682709718,12.98324188,235.56,235.5,300.0]
[1733682711293,12.98324188,235.55,235.5,300.0]
[1733682713190,12.98324188,235.54,235.5,300.0]
[1733682713584,12.98324188,235.52,235.5,300.0]
[1733682714801,12.98324188,235.51,235.5,300.0]
[1733682724199,12.98324188,235.55,235.5,300.0]
[1733682724919,12.98324188,235.54,235.5,300.0]
[1733682726989,12.98324188,235.53,235.5,300.0]
[1733682727613,12.98324188,235.52,235.5,300.0]
[1733682728783,12.98324188,235.53,235.5,300.0]
[1733682729216,8.31279848,235.53,235.5,300.0]
[1733682729638,8.31279848,235.52,235.5,300.0]
[1733682729922,8.31279848,235.51,235.5,300.0]
[1733682731199,23.1839,235.56,235.5,300.0]
[1733682731435,8.31279848,235.51,235.5,300.0]
[1733682731927,23.1839,235.56,235.5,300.0]
[1733682732110,8.31279848,235.51,235.5,300.0]
[1733682733200,7.6366,235.59,235.5,300.0]
[1733682733404,8.31279848,235.55,235.5,300.0]
[1733682733816,8.31279848,235.54,235.5,300.0]
[1733682735632,8.31279848,235.53,235.5,300.0]
[1733682735795,8.31279848,235.51,235.5,300.0]
[1733682747031,32.08968248,235.51,235.5,300.0]
[1733682752823,23.776884,235.51,235.5,300.0]
[1733682753025,8.31279848,235.51,235.5,300.0]
[1733682753551,0.1795375,235.52,235.5,300.0]
[1733682754227,0.1795375,235.52,235.51,1.6404]
[1733682754431,0.1795375,235.52,235.51,9.95319848]
[1733682759551,0.1795375,235.52,235.51,1.6404]
[1733682760452,0.1795375,235.52,235.5,300.0]
[1733682762249,0.1795375,235.52,235.51,8.31279848]
[1733682763827,0.1795375,235.52,235.5,300.0]
[1733682764159,0.1795375,235.52,235.51,8.31279848]
[1733682765151,0.1795375,235.52,235.5,308.31279848]
[1733682765846,0.1795375,235.52,235.5,300.0]
[1733682766350,0.1795375,235.52,235.5,308.31279848]
[1733682766846,0.1795375,235.52,235.5,300.0]
[1733682766847,8.49233598,235.52,235.5,300.0]
[1733682767671,8.31279848,235.51,235.5,300.0]
[1733682768563,32.08968248,235.51,235.5,300.0]
[1733682774280,32.08968248,235.51,235.5,226.49694249]
[1733682779078,20.0,235.53,235.5,226.49694249]
[1733682779250,8.31279848,235.52,235.5,226.49694249]
[1733682780042,15.36280621,235.56,235.5,226.49694249]
[1733682780390,8.31279848,235.55,235.5,226.49694249]
[1733682780542,3.1833,235.61,235.5,234.80974097]